[Event "*** Titled Tuesday 3|2 Blitz"]
[Site "Chess.com"]
[Date "2016.06.07"]
[Round "7"]
[White "biostatistician"]
[Black "iaraldinho"]
[Result "0-1"]
[WhiteElo "2296"]
[BlackElo "2457"]
[TimeControl "180+2"]
[EndTime "12:26:38 PDT"]
[Termination "iaraldinho won on time"]

1. d4 {[%clk 0:03:01.9]} 1... f5 {[%clk 0:03:00.4]} 2. Bg5 {[%clk 0:03:00.7]}
2... g6 {[%clk 0:03:01.1]} 3. Nd2 {[%clk 0:03:00.8]} 3... Bg7 {[%clk 0:03:02.1]}
4. e4 {[%clk 0:03:02.3]} 4... fxe4 {[%clk 0:03:02.5]} 5. Nxe4 {[%clk 0:03:04.2]}
5... Nh6 {[%clk 0:03:03.9]} 6. Nf3 {[%clk 0:02:59.3]} 6... Nf7 {[%clk
0:03:04.4]} 7. Bh4 {[%clk 0:02:54.1]} 7... O-O {[%clk 0:03:04.6]} 8. Bd3 {[%clk
0:02:54.1]} 8... d5 {[%clk 0:03:05.6]} 9. Neg5 {[%clk 0:02:47.2]} 9... Nc6
{[%clk 0:03:05.8]} 10. O-O {[%clk 0:02:44.8]} 10... Bg4 {[%clk 0:03:05.3]} 11.
c3 {[%clk 0:02:03.5]} 11... Nxg5 {[%clk 0:02:59.8]} 12. Bxg5 {[%clk 0:02:04.8]}
12... Bxf3 {[%clk 0:03:01.5]} 13. gxf3 {[%clk 0:02:06.7]} 13... Qd6 {[%clk
0:03:01.4]} 14. Bh4 {[%clk 0:01:34.6]} 14... e5 {[%clk 0:02:53.5]} 15. Bg3
{[%clk 0:01:35.3]} 15... Qf6 {[%clk 0:02:50.4]} 16. Bb5 {[%clk 0:01:19]} 16...
exd4 {[%clk 0:02:42.2]} 17. Bxc6 {[%clk 0:01:18.8]} 17... bxc6 {[%clk
0:02:42.3]} 18. cxd4 {[%clk 0:01:20.2]} 18... Qxd4 {[%clk 0:02:43.2]} 19. Qxd4
{[%clk 0:01:18.2]} 19... Bxd4 {[%clk 0:02:43.3]} 20. Rac1 {[%clk 0:01:18.6]}
20... c5 {[%clk 0:02:33.6]} 21. Kg2 {[%clk 0:01:14]} 21... c4 {[%clk 0:02:23.3]}
22. Rfd1 {[%clk 0:01:04.6]} 22... c5 {[%clk 0:02:24]} 23. b3 {[%clk 0:01:01.4]}
23... cxb3 {[%clk 0:02:22.8]} 24. axb3 {[%clk 0:01:03.3]} 24... a5 {[%clk
0:02:24]} 25. Bd6 {[%clk 0:01:02]} 25... Rfc8 {[%clk 0:02:22.8]} 26. f4 {[%clk
0:01:01]} 26... Kf7 {[%clk 0:02:16.9]} 27. Re1 {[%clk 0:00:57.6]} 27... Ra6
{[%clk 0:02:11.7]} 28. Be5 {[%clk 0:00:40]} 28... Bxe5 {[%clk 0:01:56.2]} 29.
Rxe5 {[%clk 0:00:41.9]} 29... Rd6 {[%clk 0:01:57.4]} 30. Ra1 {[%clk 0:00:34.9]}
30... d4 {[%clk 0:01:46.7]} 31. Rxa5 {[%clk 0:00:35.5]} 31... d3 {[%clk
0:01:48.3]} 32. Ra1 {[%clk 0:00:36.3]} 32... c4 {[%clk 0:01:43.8]} 33. bxc4
{[%clk 0:00:34.5]} 33... Rxc4 {[%clk 0:01:45.7]} 34. Rd1 {[%clk 0:00:27.6]}
34... Rxf4 {[%clk 0:01:46]} 35. Re3 {[%clk 0:00:20.2]} 35... d2 {[%clk
0:01:42.3]} 36. Kf1 {[%clk 0:00:17.2]} 36... Kf6 {[%clk 0:01:41.3]} 37. Ke2
{[%clk 0:00:18.4]} 37... Kf5 {[%clk 0:01:38]} 38. Re7 {[%clk 0:00:13.9]} 38...
Re4+ {[%clk 0:01:38.3]} 39. Rxe4 {[%clk 0:00:14.7]} 39... Kxe4 {[%clk
0:01:40.2]} 40. h3 {[%clk 0:00:13.3]} 40... Kf4 {[%clk 0:01:38.6]} 41. h4 {[%clk
0:00:03]} 41... h5 {[%clk 0:01:23.4]} 0-1

[Event "*** Titled Tuesday 3|2 Blitz"]
[Site "Chess.com"]
[Date "2016.06.07"]
[Round "7"]
[White "SabinaFoisor"]
[Black "silverback96"]
[Result "1/2-1/2"]
[WhiteElo "2184"]
[BlackElo "2057"]
[TimeControl "180+2"]
[EndTime "12:26:41 PDT"]
[Termination "Game drawn by stalemate"]

1. d4 {[%clk 0:03:00.9]} 1... Nf6 {[%clk 0:02:33.2]} 2. c4 {[%clk 0:02:59.5]}
2... c5 {[%clk 0:02:32.5]} 3. d5 {[%clk 0:02:59.8]} 3... b5 {[%clk 0:02:34.2]}
4. cxb5 {[%clk 0:02:54.2]} 4... a6 {[%clk 0:02:35.7]} 5. bxa6 {[%clk 0:02:55.2]}
5... g6 {[%clk 0:02:36.5]} 6. Nc3 {[%clk 0:02:55.5]} 6... Bg7 {[%clk 0:02:38.2]}
7. e4 {[%clk 0:02:55.9]} 7... Qa5 {[%clk 0:02:39.8]} 8. Bd2 {[%clk 0:02:54.7]}
8... Bxa6 {[%clk 0:02:38.9]} 9. Nf3 {[%clk 0:02:49.5]} 9... Bxf1 {[%clk
0:02:38.8]} 10. Kxf1 {[%clk 0:02:50.5]} 10... Na6 {[%clk 0:02:39.4]} 11. g3
{[%clk 0:02:50.4]} 11... O-O {[%clk 0:02:40.4]} 12. Kg2 {[%clk 0:02:51.3]} 12...
Qb6 {[%clk 0:02:42.3]} 13. Rb1 {[%clk 0:02:48.8]} 13... d6 {[%clk 0:02:43.8]}
14. Qe2 {[%clk 0:02:42.8]} 14... Nc7 {[%clk 0:02:43.8]} 15. Rhe1 {[%clk
0:02:37.8]} 15... Nd7 {[%clk 0:02:43.9]} 16. h4 {[%clk 0:02:35.4]} 16... Rfb8
{[%clk 0:02:44.3]} 17. b3 {[%clk 0:02:33.9]} 17... Nb5 {[%clk 0:02:21.1]} 18.
Nxb5 {[%clk 0:02:30.7]} 18... Qxb5 {[%clk 0:02:23]} 19. Qxb5 {[%clk 0:02:31]}
19... Rxb5 {[%clk 0:02:24.9]} 20. a4 {[%clk 0:02:32.5]} 20... Rb7 {[%clk
0:02:25.6]} 21. Bg5 {[%clk 0:02:29]} 21... Ne5 {[%clk 0:02:22.4]} 22. Nd2 {[%clk
0:02:21.8]} 22... Rab8 {[%clk 0:02:19.6]} 23. Re3 {[%clk 0:02:18.5]} 23... c4
{[%clk 0:02:17.3]} 24. b4 {[%clk 0:02:12.5]} 24... Rxb4 {[%clk 0:02:18.1]} 25.
Rxb4 {[%clk 0:02:11.9]} 25... Rxb4 {[%clk 0:02:20]} 26. Bxe7 {[%clk 0:02:12.7]}
26... Rxa4 {[%clk 0:02:14.5]} 27. Bxd6 {[%clk 0:02:12.9]} 27... Ng4 {[%clk
0:02:16.4]} 28. Ra3 {[%clk 0:02:07.9]} 28... Rxa3 {[%clk 0:02:17]} 29. Bxa3
{[%clk 0:02:09.8]} 29... c3 {[%clk 0:02:18.9]} 30. Nc4 {[%clk 0:02:02.7]} 30...
Bd4 {[%clk 0:02:12.4]} 31. f3 {[%clk 0:02:01.8]} 31... Nf6 {[%clk 0:02:07.5]}
32. Kf1 {[%clk 0:02:01]} 32... Nh5 {[%clk 0:01:58.9]} 33. Ke2 {[%clk 0:01:55.9]}
33... Nxg3+ {[%clk 0:01:59.6]} 34. Kd3 {[%clk 0:01:55.8]} 34... Bf6 {[%clk
0:01:59.7]} 35. d6 {[%clk 0:01:51]} 35... Bxh4 {[%clk 0:01:58.7]} 36. d7 {[%clk
0:01:51]} 36... Nh5 {[%clk 0:01:47.1]} 37. Bd6 {[%clk 0:01:49]} 37... Ng7 {[%clk
0:01:45.4]} 38. Kxc3 {[%clk 0:01:43.1]} 38... Ne6 {[%clk 0:01:46.6]} 39. f4
{[%clk 0:01:37.1]} 39... Bd8 {[%clk 0:01:43.8]} 40. Kd3 {[%clk 0:01:35.4]} 40...
f5 {[%clk 0:01:42.3]} 41. exf5 {[%clk 0:01:30.8]} 41... gxf5 {[%clk 0:01:44.2]}
42. Ke3 {[%clk 0:01:32]} 42... h5 {[%clk 0:01:44.9]} 43. Ne5 {[%clk 0:01:32.5]}
43... h4 {[%clk 0:01:42.8]} 44. Nc6 {[%clk 0:01:31.6]} 44... Bb6+ {[%clk
0:01:40.6]} 45. Kf3 {[%clk 0:01:32.2]} 45... Kf7 {[%clk 0:01:40]} 46. Kg2 {[%clk
0:01:25.4]} 46... Nd8 {[%clk 0:01:26.6]} 47. Nxd8+ {[%clk 0:01:19.6]} 47... Bxd8
{[%clk 0:01:28.5]} 48. Kh3 {[%clk 0:01:17.8]} 48... Ke6 {[%clk 0:01:29.6]} 49.
Be5 {[%clk 0:01:18.5]} 49... Kxd7 {[%clk 0:01:25.9]} 50. Bd4 {[%clk 0:01:19.6]}
50... Ke6 {[%clk 0:01:27.2]} 51. Bf2 {[%clk 0:01:21.5]} 51... Kd5 {[%clk
0:01:28.7]} 52. Bxh4 {[%clk 0:01:22.5]} 52... Bc7 {[%clk 0:01:26.6]} 53. Bg5
{[%clk 0:01:22.4]} 53... Ke4 {[%clk 0:01:28.1]} 54. Kg2 {[%clk 0:01:23.5]} 54...
Bxf4 {[%clk 0:01:25.4]} 55. Bxf4 {[%clk 0:01:25.4]} 55... Kxf4 {[%clk
0:01:27.3]} 56. Kf2 {[%clk 0:01:27]} 56... Kg5 {[%clk 0:01:29.2]} 57. Kg3 {[%clk
0:01:28]} 57... Kf6 {[%clk 0:01:31.1]} 58. Kf3 {[%clk 0:01:29.9]} 58... Ke6
{[%clk 0:01:33]} 59. Kf4 {[%clk 0:01:31.1]} 59... Kf6 {[%clk 0:01:34.4]} 60. Kf3
{[%clk 0:01:33]} 60... Kg5 {[%clk 0:01:35.5]} 61. Kg3 {[%clk 0:01:34.2]} 61...
f4+ {[%clk 0:01:36]} 62. Kf3 {[%clk 0:01:36.1]} 62... Kf5 {[%clk 0:01:37.9]} 63.
Kf2 {[%clk 0:01:37.5]} 63... Ke5 {[%clk 0:01:39.8]} 64. Kf3 {[%clk 0:01:38.9]}
64... Kf5 {[%clk 0:01:41.1]} 65. Kf2 {[%clk 0:01:40.2]} 65... Kg4 {[%clk
0:01:43]} 66. Kg2 {[%clk 0:01:41.4]} 66... f3+ {[%clk 0:01:44.9]} 67. Kf2 {[%clk
0:01:43.3]} 67... Kf4 {[%clk 0:01:46.8]} 68. Kf1 {[%clk 0:01:44.6]} 68... Ke4
{[%clk 0:01:48.7]} 69. Kf2 {[%clk 0:01:45.9]} 69... Kf4 {[%clk 0:01:50.6]} 70.
Kf1 {[%clk 0:01:47.5]} 70... Kg4 {[%clk 0:01:52.5]} 71. Kf2 {[%clk 0:01:48.8]}
71... Kf4 {[%clk 0:01:54]} 72. Kf1 {[%clk 0:01:50.5]} 72... Kg3 {[%clk
0:01:55.9]} 73. Kg1 {[%clk 0:01:51.6]} 73... f2+ {[%clk 0:01:56.6]} 74. Kf1
{[%clk 0:01:53.1]} 74... Kf3 {[%clk 0:01:58.5]} 1/2-1/2

[Event "*** Titled Tuesday 3|2 Blitz"]
[Site "Chess.com"]
[Date "2016.06.07"]
[Round "7"]
[White "talaicito"]
[Black "akinov-akinseye"]
[Result "0-1"]
[WhiteElo "1939"]
[BlackElo "1718"]
[TimeControl "180+2"]
[EndTime "12:27:01 PDT"]
[Termination "akinov-akinseye won by resignation"]

1. e4 {[%clk 0:03:01.9]} 1... e5 {[%clk 0:03:00.8]} 2. Nf3 {[%clk 0:03:02.8]}
2... Nc6 {[%clk 0:03:00.8]} 3. Bb5 {[%clk 0:03:03.4]} 3... a6 {[%clk 0:03:00.5]}
4. Ba4 {[%clk 0:03:01.5]} 4... Nf6 {[%clk 0:02:58.8]} 5. O-O {[%clk 0:03:01.1]}
5... b5 {[%clk 0:02:58.4]} 6. Bb3 {[%clk 0:03:01.1]} 6... Be7 {[%clk 0:02:59]}
7. Re1 {[%clk 0:02:58.4]} 7... O-O {[%clk 0:02:57.5]} 8. a4 {[%clk 0:02:59]}
8... b4 {[%clk 0:02:57.2]} 9. a5 {[%clk 0:02:53.6]} 9... d6 {[%clk 0:02:56.7]}
10. d3 {[%clk 0:02:54.1]} 10... Be6 {[%clk 0:02:56.5]} 11. Nbd2 {[%clk
0:02:47.7]} 11... Bg4 {[%clk 0:02:55.1]} 12. h3 {[%clk 0:02:42.7]} 12... Be6
{[%clk 0:02:54.4]} 13. Nc4 {[%clk 0:02:41.9]} 13... Nd4 {[%clk 0:02:47.2]} 14.
Nxd4 {[%clk 0:02:35.4]} 14... exd4 {[%clk 0:02:48.2]} 15. Bd2 {[%clk 0:02:24.5]}
15... c5 {[%clk 0:02:31.3]} 16. f4 {[%clk 0:02:24.4]} 16... Bxc4 {[%clk
0:02:30.7]} 17. Bxc4 {[%clk 0:02:23.3]} 17... d5 {[%clk 0:02:29.8]} 18. exd5
{[%clk 0:02:21.4]} 18... Re8 {[%clk 0:02:27.5]} 19. Qf3 {[%clk 0:02:12.5]} 19...
Bf8 {[%clk 0:02:25.8]} 20. g4 {[%clk 0:02:00]} 20... Ra7 {[%clk 0:02:13.7]} 21.
g5 {[%clk 0:01:33.7]} 21... Nd7 {[%clk 0:02:01.5]} 22. Re4 {[%clk 0:01:27.1]}
22... Bd6 {[%clk 0:01:56.3]} 23. Qe2 {[%clk 0:01:23.2]} 23... Rxe4 {[%clk
0:01:55.7]} 24. dxe4 {[%clk 0:01:23.1]} 24... Nf8 {[%clk 0:01:53.5]} 25. e5
{[%clk 0:01:22.1]} 25... Bb8 {[%clk 0:01:49.4]} 26. d6 {[%clk 0:01:17.6]} 26...
Qd7 {[%clk 0:01:45.3]} 27. Kg2 {[%clk 0:01:09.5]} 27... Ng6 {[%clk 0:01:43.2]}
28. Qg4 {[%clk 0:01:02.5]} 28... Qxg4+ {[%clk 0:01:39.3]} 29. hxg4 {[%clk
0:01:02.6]} 29... Kf8 {[%clk 0:01:40.6]} 30. Kg3 {[%clk 0:00:59.5]} 30... Ke8
{[%clk 0:01:39.7]} 31. Re1 {[%clk 0:00:58.6]} 31... Kd8 {[%clk 0:01:40]} 32.
Bxf7 {[%clk 0:00:57.4]} 32... Rxf7 {[%clk 0:01:40]} 33. f5 {[%clk 0:00:57]}
33... Nxe5 {[%clk 0:01:37.8]} 34. Rxe5 {[%clk 0:00:55.8]} 34... Bxd6 {[%clk
0:01:38.5]} 35. Bf4 {[%clk 0:00:55.6]} 35... Bxe5 {[%clk 0:01:39.2]} 36. Bxe5
{[%clk 0:00:56.7]} 36... Kd7 {[%clk 0:01:36.1]} 37. Kf4 {[%clk 0:00:56.9]} 37...
Kc6 {[%clk 0:01:36.7]} 38. Ke4 {[%clk 0:00:55.3]} 38... h6 {[%clk 0:01:34.1]}
39. g6 {[%clk 0:00:55]} 39... Rd7 {[%clk 0:01:33.7]} 40. Bxg7 {[%clk 0:00:45.8]}
40... Rxg7 {[%clk 0:01:34]} 41. f6 {[%clk 0:00:46]} 41... Rxg6 {[%clk
0:01:34.2]} 42. Kf5 {[%clk 0:00:46.7]} 42... Rg8 {[%clk 0:01:33.9]} 43. f7
{[%clk 0:00:46.7]} 43... Rf8 {[%clk 0:01:33.9]} 44. Ke6 {[%clk 0:00:47.1]} 44...
c4 {[%clk 0:01:34.8]} 45. Ke7 {[%clk 0:00:46.7]} 45... Rxf7+ {[%clk 0:01:35.6]}
46. Kxf7 {[%clk 0:00:47.5]} 46... d3 {[%clk 0:01:37.5]} 47. cxd3 {[%clk
0:00:47.8]} 47... cxd3 {[%clk 0:01:38.1]} 48. Kg7 {[%clk 0:00:49.4]} 48... d2
{[%clk 0:01:39.4]} 49. Kxh6 {[%clk 0:00:50.3]} 49... d1=Q {[%clk 0:01:40.2]} 50.
g5 {[%clk 0:00:51.1]} 50... Qh1+ {[%clk 0:01:38.9]} 51. Kg7 {[%clk 0:00:51.7]}
51... Kb5 {[%clk 0:01:39.7]} 52. g6 {[%clk 0:00:52.4]} 52... Kxa5 {[%clk
0:01:40.5]} 53. Kf8 {[%clk 0:00:53.9]} 53... Ka4 {[%clk 0:01:41.1]} 54. g7
{[%clk 0:00:55.4]} 54... Qg1 {[%clk 0:01:42]} 55. g8=Q {[%clk 0:00:55]} 55...
Qxg8+ {[%clk 0:01:40.8]} 56. Kxg8 {[%clk 0:00:56]} 56... Kb3 {[%clk 0:01:42.4]}
0-1

[Event "*** Titled Tuesday 3|2 Blitz"]
[Site "Chess.com"]
[Date "2016.06.07"]
[Round "7"]
[White "AleksandrKholin"]
[Black "viktorskliarov"]
[Result "0-1"]
[WhiteElo "2119"]
[BlackElo "2352"]
[TimeControl "180+2"]
[EndTime "12:27:19 PDT"]
[Termination "viktorskliarov won by resignation"]

1. d4 {[%clk 0:03:01.9]} 1... Nf6 {[%clk 0:02:51.7]} 2. Nf3 {[%clk 0:03:01.2]}
2... c5 {[%clk 0:02:49]} 3. g3 {[%clk 0:03:00.1]} 3... cxd4 {[%clk 0:02:48.7]}
4. Nxd4 {[%clk 0:03:00.6]} 4... Nc6 {[%clk 0:02:50.3]} 5. Bg2 {[%clk 0:03:00.8]}
5... g6 {[%clk 0:02:51.6]} 6. O-O {[%clk 0:03:00.4]} 6... Bg7 {[%clk 0:02:53.1]}
7. c4 {[%clk 0:03:01.2]} 7... O-O {[%clk 0:02:50.1]} 8. Nc3 {[%clk 0:03:00.8]}
8... d6 {[%clk 0:02:49.6]} 9. Nxc6 {[%clk 0:03:00.5]} 9... bxc6 {[%clk
0:02:49.2]} 10. Bxc6 {[%clk 0:03:01.4]} 10... Rb8 {[%clk 0:02:50.3]} 11. Qc2
{[%clk 0:03:02.2]} 11... Bh3 {[%clk 0:02:49.3]} 12. Bg2 {[%clk 0:02:57.8]} 12...
Bxg2 {[%clk 0:02:49.9]} 13. Kxg2 {[%clk 0:02:57.9]} 13... Qc7 {[%clk 0:02:50.2]}
14. Be3 {[%clk 0:02:44.3]} 14... Qxc4 {[%clk 0:02:39.8]} 15. Bxa7 {[%clk
0:02:43.4]} 15... Rb7 {[%clk 0:02:31.4]} 16. Be3 {[%clk 0:02:39.6]} 16... Nd5
{[%clk 0:02:24.9]} 17. Bd2 {[%clk 0:02:39.3]} 17... Rfb8 {[%clk 0:02:16.8]} 18.
Rab1 {[%clk 0:02:39]} 18... h5 {[%clk 0:01:24]} 19. h4 {[%clk 0:02:32.1]} 19...
Nb4 {[%clk 0:01:09.6]} 20. Qa4 {[%clk 0:02:27.7]} 20... d5 {[%clk 0:01:10]} 21.
a3 {[%clk 0:02:23.1]} 21... Nc6 {[%clk 0:01:10.4]} 22. Qxc4 {[%clk 0:02:18.1]}
22... dxc4 {[%clk 0:01:12.3]} 23. Bf4 {[%clk 0:01:31.4]} 23... e5 {[%clk
0:01:06.5]} 24. Be3 {[%clk 0:01:31.3]} 24... Rxb2 {[%clk 0:01:05.7]} 25. Rxb2
{[%clk 0:01:32.6]} 25... Rxb2 {[%clk 0:01:05.8]} 26. Rc1 {[%clk 0:01:34.1]}
26... Nd4 {[%clk 0:00:54.4]} 27. Nd5 {[%clk 0:01:20.3]} 27... Nc2 {[%clk
0:00:52.2]} 28. Bc5 {[%clk 0:01:18.4]} 28... e4 {[%clk 0:00:49]} 29. Nb4 {[%clk
0:01:16.4]} 29... Nxa3 {[%clk 0:00:39.9]} 30. Nd5 {[%clk 0:00:44.7]} 30... Nc2
{[%clk 0:00:36.2]} 31. Ne3 {[%clk 0:00:44.4]} 31... Nxe3+ {[%clk 0:00:35.1]} 32.
Bxe3 {[%clk 0:00:44]} 32... c3 {[%clk 0:00:35.1]} 33. Kf1 {[%clk 0:00:45.2]}
33... f5 {[%clk 0:00:18.1]} 34. Ke1 {[%clk 0:00:44.1]} 34... Bf8 {[%clk
0:00:19.1]} 35. Bd4 {[%clk 0:00:39.3]} 35... Rb3 {[%clk 0:00:19.5]} 36. Bxc3
{[%clk 0:00:36.5]} 36... Rxc3 {[%clk 0:00:20.1]} 37. Rxc3 {[%clk 0:00:37.3]}
37... Bb4 {[%clk 0:00:22]} 38. Kd2 {[%clk 0:00:38.6]} 38... g5 {[%clk
0:00:22.1]} 39. hxg5 {[%clk 0:00:38.9]} 39... f4 {[%clk 0:00:23.3]} 40. Kc2
{[%clk 0:00:35.6]} 40... Bxc3 {[%clk 0:00:24.2]} 41. Kxc3 {[%clk 0:00:36.5]}
41... e3 {[%clk 0:00:25.7]} 0-1

[Event "*** Titled Tuesday 3|2 Blitz"]
[Site "Chess.com"]
[Date "2016.06.07"]
[Round "7"]
[White "saraswathii"]
[Black "Fibrinogen"]
[Result "0-1"]
[WhiteElo "1980"]
[BlackElo "2289"]
[TimeControl "180+2"]
[EndTime "12:27:26 PDT"]
[Termination "Fibrinogen won on time"]

1. e4 {[%clk 0:03:00.6]} 1... e5 {[%clk 0:03:00.5]} 2. Nf3 {[%clk 0:02:50.4]}
2... Nc6 {[%clk 0:03:01.5]} 3. d3 {[%clk 0:02:48.5]} 3... Nf6 {[%clk 0:03:00.4]}
4. g3 {[%clk 0:02:47.6]} 4... d5 {[%clk 0:03:00.7]} 5. exd5 {[%clk 0:02:45.3]}
5... Nxd5 {[%clk 0:03:02.6]} 6. Bg2 {[%clk 0:02:45.7]} 6... Be7 {[%clk
0:03:02.1]} 7. O-O {[%clk 0:02:45.3]} 7... O-O {[%clk 0:03:03.3]} 8. h3 {[%clk
0:02:40.9]} 8... Be6 {[%clk 0:03:02.3]} 9. Re1 {[%clk 0:02:37.8]} 9... Qd7
{[%clk 0:02:54.2]} 10. Nxe5 {[%clk 0:02:30.7]} 10... Nxe5 {[%clk 0:02:54.1]} 11.
Rxe5 {[%clk 0:02:32.6]} 11... Bf6 {[%clk 0:02:55.2]} 12. Re1 {[%clk 0:02:13]}
12... Bxh3 {[%clk 0:02:55.2]} 13. Qf3 {[%clk 0:02:07.4]} 13... Bxg2 {[%clk
0:02:52.6]} 14. Kxg2 {[%clk 0:02:07.6]} 14... Rae8 {[%clk 0:02:54.1]} 15. Re4
{[%clk 0:02:04.3]} 15... Rxe4 {[%clk 0:02:47.9]} 16. dxe4 {[%clk 0:02:04.4]}
16... Nb4 {[%clk 0:02:48.4]} 17. Qb3 {[%clk 0:01:48.3]} 17... Qd4 {[%clk
0:02:47.8]} 18. Nc3 {[%clk 0:01:33]} 18... Qb6 {[%clk 0:02:15.8]} 19. Be3 {[%clk
0:01:30.2]} 19... c5 {[%clk 0:02:15.3]} 20. Na4 {[%clk 0:01:21.2]} 20... Qc6
{[%clk 0:02:07.4]} 21. Nxc5 {[%clk 0:01:12.5]} 21... a5 {[%clk 0:01:53.7]} 22.
c3 {[%clk 0:01:07.2]} 22... b6 {[%clk 0:01:46.7]} 23. cxb4 {[%clk 0:01:01.5]}
23... bxc5 {[%clk 0:01:47.5]} 24. bxc5 {[%clk 0:00:57.1]} 24... Qxe4+ {[%clk
0:01:47.9]} 25. Kg1 {[%clk 0:00:53.9]} 25... a4 {[%clk 0:01:47.5]} 26. Qb6
{[%clk 0:00:48.7]} 26... a3 {[%clk 0:01:43.4]} 27. Bc1 {[%clk 0:00:42.5]} 27...
Qe1+ {[%clk 0:01:34.2]} 28. Kg2 {[%clk 0:00:42.6]} 28... Qe4+ {[%clk 0:01:31.3]}
29. Kg1 {[%clk 0:00:42.4]} 29... Bd4 {[%clk 0:01:31.7]} 30. Bf4 {[%clk
0:00:18.2]} 30... axb2 {[%clk 0:01:29.1]} 31. Rd1 {[%clk 0:00:12.4]} 31... Qe2
{[%clk 0:01:20.9]} 32. Rf1 {[%clk 0:00:11.1]} 32... Qc2 {[%clk 0:01:13.4]} 33.
Be3 {[%clk 0:00:09.8]} 33... Bxe3 {[%clk 0:00:59.2]} 34. fxe3 {[%clk 0:00:11.7]}
34... Qc1 {[%clk 0:01:00.7]} 35. c6 {[%clk 0:00:12]} 35... Rc8 {[%clk
0:00:59.8]} 36. c7 {[%clk 0:00:03.5]} 36... h6 {[%clk 0:00:51.9]} 37. Qb8 {[%clk
0:00:03.5]} 37... Qxe3+ {[%clk 0:00:49.1]} 38. Kg2 {[%clk 0:00:02.6]} 38... Qe4+
{[%clk 0:00:48.7]} 39. Rf3 {[%clk 0:00:02.5]} 39... Qe6 {[%clk 0:00:26.1]} 0-1

[Event "*** Titled Tuesday 3|2 Blitz"]
[Site "Chess.com"]
[Date "2016.06.07"]
[Round "7"]
[White "kpio91"]
[Black "hansen"]
[Result "1-0"]
[WhiteElo "2547"]
[BlackElo "2561"]
[TimeControl "180+2"]
[EndTime "12:27:36 PDT"]
[Termination "kpio91 won by resignation"]

1. e4 {[%clk 0:03:01.9]} 1... e5 {[%clk 0:02:54.7]} 2. Nf3 {[%clk 0:03:01.9]}
2... d6 {[%clk 0:02:56]} 3. d4 {[%clk 0:03:02.9]} 3... exd4 {[%clk 0:02:56.8]}
4. Nxd4 {[%clk 0:03:03.8]} 4... Nf6 {[%clk 0:02:58.4]} 5. Nc3 {[%clk 0:03:04.7]}
5... Be7 {[%clk 0:02:52.7]} 6. g3 {[%clk 0:03:05.7]} 6... O-O {[%clk 0:02:50.6]}
7. Bg2 {[%clk 0:03:06.2]} 7... Bg4 {[%clk 0:02:49.2]} 8. f3 {[%clk 0:03:03]}
8... Bd7 {[%clk 0:02:48.6]} 9. O-O {[%clk 0:03:04.1]} 9... Nc6 {[%clk
0:02:48.9]} 10. Be3 {[%clk 0:03:04.6]} 10... Re8 {[%clk 0:02:47.4]} 11. Qd2
{[%clk 0:02:59.6]} 11... Bf8 {[%clk 0:02:43.1]} 12. Rae1 {[%clk 0:02:56.6]}
12... a6 {[%clk 0:02:34.2]} 13. h3 {[%clk 0:02:52.9]} 13... b5 {[%clk
0:01:57.7]} 14. Nce2 {[%clk 0:02:14.7]} 14... Ne5 {[%clk 0:01:48.9]} 15. b3
{[%clk 0:01:52.9]} 15... d5 {[%clk 0:01:17.9]} 16. f4 {[%clk 0:01:25.3]} 16...
Nxe4 {[%clk 0:01:18.6]} 17. Bxe4 {[%clk 0:01:23.3]} 17... dxe4 {[%clk
0:01:20.5]} 18. fxe5 {[%clk 0:01:24.5]} 18... Bxh3 {[%clk 0:01:22.1]} 19. Rf2
{[%clk 0:01:19.3]} 19... c5 {[%clk 0:01:18]} 20. Nf5 {[%clk 0:01:19.9]} 20...
Rxe5 {[%clk 0:01:10.5]} 21. Qxd8 {[%clk 0:01:19.9]} 21... Rxd8 {[%clk
0:01:10.3]} 22. Nh4 {[%clk 0:01:21.5]} 22... g5 {[%clk 0:01:00.3]} 23. Ng2
{[%clk 0:01:17.1]} 23... h6 {[%clk 0:00:55.9]} 24. Nc3 {[%clk 0:01:11.2]} 24...
c4 {[%clk 0:00:41.2]} 25. Rd1 {[%clk 0:01:05.7]} 25... Rxd1+ {[%clk 0:00:37.2]}
26. Nxd1 {[%clk 0:01:06.8]} 26... Bg4 {[%clk 0:00:38.1]} 27. Nc3 {[%clk
0:00:47.1]} 27... b4 {[%clk 0:00:31.4]} 28. Bd4 {[%clk 0:00:47]} 28... Re6
{[%clk 0:00:07.3]} 29. Nd5 {[%clk 0:00:45.3]} 29... Be7 {[%clk 0:00:06.8]} 30.
bxc4 {[%clk 0:00:38]} 30... Bf3 {[%clk 0:00:06.7]} 31. Nge3 {[%clk 0:00:38.3]}
31... Bd8 {[%clk 0:00:07.8]} 32. c5 {[%clk 0:00:31.3]} 32... a5 {[%clk
0:00:08.5]} 33. Nf5 {[%clk 0:00:28]} 33... Kh7 {[%clk 0:00:07.4]} 34. Nd6 {[%clk
0:00:17.7]} 34... Kg6 {[%clk 0:00:06.9]} 35. Rd2 {[%clk 0:00:12.6]} 35... f5
{[%clk 0:00:02.9]} 36. Kf2 {[%clk 0:00:13.7]} 36... f4 {[%clk 0:00:03.5]} 37.
gxf4 {[%clk 0:00:14]} 37... Re7 {[%clk 0:00:03.7]} 38. f5+ {[%clk 0:00:14.4]}
38... Kh5 {[%clk 0:00:04.4]} 39. Nxe7 {[%clk 0:00:15.6]} 39... Bxe7 {[%clk
0:00:06.3]} 40. f6 {[%clk 0:00:16.9]} 40... Bd8 {[%clk 0:00:07.6]} 41. f7 {[%clk
0:00:18.1]} 41... Be7 {[%clk 0:00:08.9]} 42. Nf5 {[%clk 0:00:19]} 1-0